Workbook

Sheet расчет затраты на опл.труда
A1: Калькуляционный метод формирования цены на платные услуги 2023 - 2024 год
A2: РАСЧЕТ ЗАТРАТ НА ОПЛАТУ ТРУДА ОСНОВНОГО ПЕРСОНАЛА, НЕПОСРЕДСТВЕННО УЧАСТВУЮЩЕГО В ПРОЦЕССЕ ОКАЗАНИЯ ПЛАТНОЙ УСЛУГИ
A3: № п/п | B3: Фамилия педагога | C3: Должность | D3: Средняя заработная плата, включая начисления на выплаты по оплате труда, рублей в месяц | E3: Месячный фонд рабочего времени, минут | F3: Норма времени на оказание платной услуги, минут | G3: Затраты на оплату труда персонала, рублей
A4: 1 | B4: 2 | C4: 3 | D4: 4 | E4: 5 | F4: 6 | G4: 7
A5: 1 | B5: Галиуллина А.В. "Лего мастер" | C5: Психолог | D5: =(31952.8*1.302) -> 41602.55 | E5: =F5*4*60 -> 7200 | F5: 30 | G5: =D5/E5*F5 -> 173.34
A6: 2 | B6: Идрисова Ч. "Белая ладья" | C6: Воспитатель по обучению тат. языкам | D6: =35671.22*1.302 -> 46443.93 | E6: 4320 | F6: 18 | G6: 193.52
A7: 3 | B7: Касымова В. В. "Мир открытий" | C7: Воспитатель | D7: =(33216.23*1.302) -> 43247.53 | E7: 8640 | F7: 36 | G7: 180.20
A8: 4 | B8: Кириченко Ольга Марсовна "Детский фитнес" | C8: Инструктор по физической культуре | D8: =(28065.54*1.302) -> 36541.33 | E8: 7200 | F8: 30 | G8: 152.26
A9: 5 | B9: Никольская О.Т. "Мир открытий" | C9: Воспитатель | D9: =(33216.23*1.302) -> 43247.53 | E9: 8640 | F9: 36 | G9: 180.20
A10: 6 | B10: Соловьева Д.И. "Английский язык" | C10: Воспитатель | D10: =(36007.33* 1.302) -> 46881.54 | E10: 8640 | F10: 36 | G10: 195.34
A11: 7 | B11: Хамидуллина А.О. "Магия танца" | C11: Хореограф | D11: =(24756.39*1.302) -> 32232.82 | E11: 5760 | F11: 24 | G11: 134.30
A12: 8 | B12: Черняева С.В. "По дороге к школе" | C12: Воспитатель | D12: =(34007.096*1.302) -> 44277.24 | E12: 8640 | F12: 36 | G12: 184.49
A13: Итого: | C13: Х | D13: Х | E13: Х | F13: Х | G13: =SUM(G5:G12) -> 1393.64

Sheet Расчет цены кружка
B7: Расчет цены на оказание платной услуги по МБДОУ "Детский сад общеразвивающего вида №3" на 2023-2024г.
A8: № п/п | B8: наименование статей затрат | F8: ед.изм. | G8: Наименование платного кружка
G9: "Лего мастер" | H9: "Белая ладья" | I9: "Мир открытий" | J9: Деский фитнес | K9: "Мир открытий" | L9: "Английский язык" | M9: "Магия танца" | N9: По дороге к школе
A10: 1 | B10: Затраты на оплату труда основного персонала | F10: руб. | G10: ='расчет затраты на опл.труда'!G5 -> 173.34 | H10: ='расчет затраты на опл.труда'!G6 -> 193.52 | I10: ='расчет затраты на опл.труда'!G7 -> 180.20 | J10: ='расчет затраты на опл.труда'!G8 -> 152.26 | K10: ='расчет затраты на опл.труда'!G9 -> 180.20 | L10: ='расчет затраты на опл.труда'!G10 -> 195.34 | M10: ='расчет затраты на опл.труда'!G11 -> 134.30 | N10: ='расчет затраты на опл.труда'!G12 -> 184.49
A11: 2 | B11: Затраты материальных запасов | F11: руб. | G11: 0.00 | H11: 0.00 | I11: 0.00 | J11: 0.00 | K11: 0.00 | L11: 0.00 | M11: 0.00 | N11: ='Логопед затраты'!G12 -> 83.75
A12: 3 | B12: Сумма начисленной амортизации оборудования используемого при оказании платных услуг | F12: руб. | G12: 0.00 | H12: 0.00 | I12: 0.00 | J12: 0.00 | K12: 0.00 | L12: 0.00 | M12: 0.00 | N12: 0.00
A13: 4 | B13: Накладные затраты относимые на платную услугу | F13: руб. | G13: ='Расчет накладных затрат'!E13 -> 396.46 | H13: ='Расчет накладных затрат'!F13 -> 442.59 | I13: ='Расчет накладных затрат'!G13 -> 412.13 | J13: ='Расчет накладных затрат'!H13 -> 348.22 | K13: ='Расчет накладных затрат'!I13 -> 412.13 | L13: ='Расчет накладных затрат'!J13 -> 446.76 | M13: ='Расчет накладных затрат'!K13 -> 307.17 | N13: ='Расчет накладных затрат'!L13 -> 421.94
A14: 5 | B14: Итого затрат на 1 услугу | F14: руб. | G14: =G10+G11+G12+G13 -> 569.80 | H14: =H10+H11+H12+H13 -> 636.11 | I14: =I10+I11+I12+I13 -> 592.33 | J14: =J10+J11+J12+J13 -> 500.48 | K14: =K10+K11+K12+K13 -> 592.33 | L14: 642.10 | M14: 441.47 | N14: 690.18
A15: 6 | B15: Рентабельность % | F15: руб. | G15: =G14*20% -> 113.96 | H15: =H14*30% -> 190.83 | I15: =I14*30% -> 177.70 | J15: =J14*30% -> 150.14 | K15: =K14*30% -> 177.70 | L15: =L14*30% -> 192.63 | M15: 132.44 | N15: 207.05
A16: 7 | B16: Затраты с учётом рентабельности | F16: руб. | G16: =G14+G15 -> 683.76 | H16: =H14+H15 -> 826.94 | I16: =I14+I15 -> 770.03 | J16: =J14+J15 -> 650.62 | K16: =K14+K15 -> 770.03 | L16: 834.73 | M16: 573.91 | N16: 897.24
A17: 8 | B17: Плановое количество оказываемых услуг в месяц | F17: занятий | G17: 8.00 | H17: 8.00 | I17: 8.00 | J17: 8.00 | K17: 8.00 | L17: 8.00 | M17: 8.00 | N17: 8.00
A18: 9 | B18: Цена платной услуги в месяц | F18: руб. | G18: =G16*G17 -> 5470.08 | H18: =H16*H17 -> 6615.53 | I18: =I16*I17 -> 6160.23 | J18: =J16*J17 -> 5204.99 | K18: =K16*K17 -> 6160.23 | L18: 6677.87 | M18: 4591.28 | N18: 7177.91
A19: 10 | B19: Цена платной услуги в месяц с учётом НДС | F19: руб. | G19: =G18 -> 5470.08 | H19: =H18 -> 6615.53 | I19: =I18 -> 6160.23 | J19: =J18 -> 5204.99 | K19: =K18 -> 6160.23 | L19: 6677.87 | M19: 4591.28 | N19: 7177.91

Sheet Расчет накладных затрат
A2: Расчет накладных затрат, необходимых для обеспечения деятельности учреждения при оказании платной услуги
F4: 2023-2024 год
B6: N | C6: Наименование статей затрат | E6: "Лего мастер" | F6: "Белая ладья" | G6: "Мир открытий" | H6: Деский фитнес | I6: "Мир открытий" | J6: "Английский язык" | K6: "Магия танца" | L6: По дороге к школе
B7: 1 | C7: Прогноз затрат на административно-управленческий персонал | E7: =81.472*0.12*1.302 -> 12.73 | F7: =81.472*0.12*1.302 -> 12.73 | G7: 12.73 | H7: 12.73 | I7: 12.73 | J7: 12.73 | K7: 12.73 | L7: 12.73
B8: 2 | C8: Затраты на материальные запасы | E8: 0 | F8: 0 | G8: 0 | H8: 0 | I8: 0 | J8: 0 | K8: 0 | L8: 0
B9: 3 | C9: Прогноз суммы начисленной амортизации имущества общехозяйственного назначения | E9: 0.00 | F9: 0.00 | G9: 0.00 | H9: 0.00 | I9: 0.00 | J9: 0.00 | K9: 0.00 | L9: 0.00
B10: 4 | C10: Прогноз суммарного фонда оплаты труда основного персонала | E10: =(40.415*0.456)*0.302 -> 5.57 | F10: =(40.415*0.456)*0.302 -> 5.57 | G10: 5.57 | H10: 5.57 | I10: 5.57 | J10: 5.57 | K10: 5.57 | L10: 5.57
B11: 5 | C11: Коэффициент накладных затрат | E11: =(E7+E8+E9)/E10 -> 2.29 | F11: =(F7+F8+F9)/F10 -> 2.29 | G11: =(G7+G8+G9)/G10 -> 2.29 | H11: =(H7+H8+H9)/H10 -> 2.29 | I11: =(I7+I8+I9)/I10 -> 2.29 | J11: =(J7+J8+J9)/J10 -> 2.29 | K11: 2.29 | L11: 2.29
B12: 6 | C12: Затраты на основной персонал, участвующий в предоставлении платной услуги | E12: ='Расчет цены кружка'!G10 -> 173.34 | F12: ='Расчет цены кружка'!H10 -> 193.52 | G12: ='Расчет цены кружка'!I10 -> 180.20 | H12: ='Расчет цены кружка'!J10 -> 152.26 | I12: ='Расчет цены кружка'!K10 -> 180.20 | J12: ='Расчет цены кружка'!L10 -> 195.34 | K12: ='Расчет цены кружка'!M10 -> 134.30 | L12: ='Расчет цены кружка'!N10 -> 184.49
B13: 7 | C13: Итого накладных затрат | E13: =E11*E12 -> 396.46 | F13: =F11*F12 -> 442.59 | G13: =G11*G12 -> 412.13 | H13: =H11*H12 -> 348.22 | I13: =I11*I12 -> 412.13 | J13: =J11*J12 -> 446.76 | K13: 307.17 | L13: 421.94

Sheet Калькуляция
A1: Калькуляция на 2023 - 2024 учебный год МБДОУ "Детский сад №3" НМР РТ
A3: № п/п | B3: ФИО | C3: Наименование кружка | D3: Наименование должности | E3: Наименование статей затрат | I3: ИТОГО затрат | J3: Рента-бельность, % | K3: Затраты с учетом рента-бельности | L3: Плановое количество оказываемых услуг | M3: Фактическая цена платной услуги | N3: Стоимость платной услуги
E4: Затраты на оплату труда | F4: Затраты на материальные запасы | G4: Сумма начисленной амортизации оборудования, используемого при оказании платной услуги | H4: Накладные затраты, относимые на платную услугу
A5: 1 | B5: Галиуллина А.В. | C5: "Лего мастер" | D5: Психолог | E5: ='расчет затраты на опл.труда'!G5 -> 173.34 | F5: 0.00 | G5: 0.00 | H5: ='Расчет накладных затрат'!E13 -> 396.46 | I5: =E5+F5+G5+H5 -> 569.80 | J5: 20 | K5: =I5*1.2 -> 683.76 | L5: 8 | M5: =L5*K5 -> 5,470.08 | N5: 800.00
A6: 2 | B6: Идрисова Ч. | C6: "Белая ладья" | D6: Воспитатель | E6: ='расчет затраты на опл.труда'!G6 -> 193.52 | F6: 0.00 | G6: 0.00 | H6: ='Расчет накладных затрат'!F13 -> 442.59 | I6: =E6+F6+G6+H6 -> 636.11 | J6: 20 | K6: =I6*1.2 -> 763.33 | L6: 8 | M6: =L6*K6 -> 6,106.64 | N6: 600.00
A7: 3 | B7: Касымова В. В. | C7: "Мир открытий" | D7: Воспитатель | E7: ='расчет затраты на опл.труда'!G7 -> 180.20 | F7: 0.00 | G7: 0.00 | H7: ='Расчет накладных затрат'!G13 -> 412.13 | I7: =E7+F7+G7+H7 -> 592.33 | J7: 20 | K7: =I7*1.2 -> 710.80 | L7: 8 | M7: =L7*K7 -> 5,686.37 | N7: 600.00
A8: 4 | B8: Кириченко О.М. | C8: "Детский фитнес | D8: Инструктор по физической культуре | E8: ='расчет затраты на опл.труда'!G8 -> 152.26 | F8: 0.00 | G8: 0.00 | H8: ='Расчет накладных затрат'!H13 -> 348.22 | I8: =E8+F8+G8+H8 -> 500.48 | J8: 21 | K8: =I8*1.2 -> 600.58 | L8: 9 | M8: =L8*K8 -> 5,405.19 | N8: 601.00
A9: 5 | B9: Никольская О.В. | C9: "Мир открытий" | D9: Воспитатель | E9: ='расчет затраты на опл.труда'!G9 -> 180.20 | F9: 0.00 | G9: 0.00 | H9: ='Расчет накладных затрат'!I13 -> 412.13 | I9: =E9+F9+G9+H9 -> 592.33 | J9: 20 | K9: =I9*1.2 -> 710.80 | L9: 8 | M9: =L9*K9 -> 5,686.37 | N9: 600.00
A10: 6 | B10: Соловьева Д.И. | C10: "Английский язык" | D10: Воспитатель | E10: ='расчет затраты на опл.труда'!G10 -> 195.34 | F10: 0.00 | G10: 0.00 | H10: ='Расчет накладных затрат'!J13 -> 446.76 | I10: =E10+F10+G10+H10 -> 642.10 | J10: 20 | K10: =I10*1.2 -> 770.52 | L10: 8 | M10: =L10*K10 -> 6,164.18 | N10: 600.00
A11: 7 | B11: Хамидуллина А.О. | C11: "Магия танца" | D11: Хореограф | E11: ='расчет затраты на опл.труда'!G11 -> 134.30 | F11: 0.00 | G11: 0.00 | H11: ='Расчет накладных затрат'!K13 -> 307.17 | I11: =E11+F11+G11+H11 -> 441.47 | J11: 20 | K11: =I11*1.2 -> 529.76 | L11: 8 | M11: =L11*K11 -> 4,238.11 | N11: 800.00
A12: 8 | B12: Черняева С.В. | C12: "Звукознайка" | D12: Воспитатель | E12: ='расчет затраты на опл.труда'!G12 -> 184.49 | F12: 0.00 | G12: 0.00 | H12: ='Расчет накладных затрат'!L13 -> 421.94 | I12: =E12+F12+G12+H12 -> 606.43 | J12: 10 | K12: =I12*1.1 -> 667.08 | L12: 8 | M12: =L12*K12 -> 5,336.61 | N12: 1,800.00
A14: Заведующий | E14: ______________Р.Г. Ганиева
A17: Главный бухгалтер | E17: ______________Э.Г. Якупова

Sheet Аглийский затраты
A1: РАСЧЕТ
A2: затрат на материальные запасы, полностью потребляемые
A3: в процессе оказания платной услуги (работы)
A5: № п/п | B5: Наименование товара, составляющего материальный запас | C5: Ед. изм. | D5: Норма потребления | E5: Объем оказания платных услуг за норму времени | F5: Цена за единицу (ср.рын.стоим., на 01.09.23г.) | G5: Всего затрат материальных запасов
A6: 1 | B6: 2 | C6: 3 | D6: 4 | E6: 5 | F6: 6 | G6: 7
A7: 1 | B7: Тетрадь | C7: шт | D7: 15 | E7: 30 | F7: 10 | G7: =D7*F7 -> 150
A8: 2 | B8: Ручка | C8: шт | D8: 30 | E8: 30 | F8: 20 | G8: =D8*F8 -> 600
A9: ИТОГО | G9: =SUM(G7:G8)/8 -> 93.75

Sheet Логопед затраты
A1: РАСЧЕТ
A2: затрат на материальные запасы, полностью потребляемые
A3: в процессе оказания платной услуги (работы)
A5: № п/п | B5: Наименование товара, составляющего материальный запас | C5: Ед. изм. | D5: Норма потребления | E5: Объем оказания платных услуг за норму времени | F5: Цена за единицу (ср.рын.стоим., на 01.09.19г.) | G5: Всего затрат материальных запасов
A6: 1 | B6: 2 | C6: 3 | D6: 4 | E6: 5 | F6: 6 | G6: 7
A7: 1 | B7: Краски | C7: шт | D7: 5 | E7: 30 | F7: 30 | G7: =D7*F7 -> 150
A8: 2 | B8: Кисти | C8: шт | D8: 10 | E8: 30 | F8: 10 | G8: =D8*F8 -> 100
A9: 3 | B9: Альбомы | C9: шт | D9: 5 | E9: 30 | F9: 30 | G9: 150
A10: 4 | B10: Карандаши цветные | C10: шт | D10: 3 | E10: 30 | F10: 70 | G10: 210
A11: 5 | B11: Мелки восковые | C11: шт | D11: 3 | E11: 30 | F11: 20 | G11: 60
A12: ИТОГО | G12: =SUM(G7:G11)/8 -> 83.75
